Cogmind - Beta 14 @@@ ROGUE MODE // 2024.12.19 @ 02:12:26 Player: Pitt Result: Destroyed by C-17 Slicer with Blade Saw Performance ------------- Evolutions (2) 1000 Regions Visited (3) 600 Robots Destroyed (36) 180 Value Destroyed (629) 629 Prototype IDs (1) 20 Alien Tech Used (0) 0 Bonus (0) 0 TOTAL SCORE: 2429 Bonus ------- None Cogmind --------- Core Integrity 0/550 Matter 198/300 Energy 44/100 System Corruption 0% Temperature Cool (0) Movement Core (150) Ox2 Location -8/Materials Parts ------- > --- POWER (2) -------- (None) > --- PROPULSION (3) --- (None) > --- UTILITY (4) ------ Improved Heat Sink Small Storage Unit Visual Processing Unit > --- WEAPON (2) ------- Heavy Assault Rifle > --- INVENTORY (8) ---- Light Ion Engine Flight Unit Flight Unit Structural Scanner Improved Terrain Scanner Makeshift Light Armor Plating Tractor Beam Peak State ------------ > --- POWER ------------ Ion Engine Light Ion Engine > --- PROPULSION ------- Flight Unit Flight Unit > --- UTILITY ---------- Small Storage Unit Advanced Weight Redist. System Visual Processing Unit Makeshift Light Armor Plating > --- WEAPON ----------- Powered Cannon > --- INVENTORY -------- Wheel Wheel Improved Hover Unit Structural Scanner Improved Terrain Scanner Seismic Detector Riot Gun [Rating: 29] Favorites ----------- Power Ion Engine Engine Ion Engine Propulsion Wheel Wheel Wheel Hover Unit Improved Hover Unit Flight Unit Flight Unit Utility Small Storage Unit Device Improved Terrain Scanner Storage Small Storage Unit Processor Visual Processing Unit Protection Makeshift Light Armor Plating Weapon Subdweller Beam Cannon Energy Gun Particle Gun Energy Cannon Subdweller Beam Cannon Ballistic Gun Assault Rifle Special Weapon Mining Laser Build | -11 -10 -10 -8 ------- Run | Yrd Mat Sub Mat Slots Evolved 4 | . . . 4 Power 1 | . . . 1 Propulsion 1 | . . . 1 Utility 2 | . . . 2 Weapon . | . . . . Parts Attached 71 | 10 8 23 30 Power 7 | 2 1 . 4 Engine 7 | 2 1 . 4 Core . | . . . . Reactor . | . . . . Propulsion 13 | 4 . . 9 Treads . | . . . . Leg . | . . . . Wheel 7 | 4 . . 3 Hover 1 | . . . 1 Flight 5 | . . . 5 Utility 26 | 2 . 18 6 Device 23 | 1 . 18 4 Storage 1 | 1 . . . Processor 1 | . . . 1 Hackware . | . . . . Protection 1 | . . . 1 Artifact . | . . . . Weapon 25 | 2 7 5 11 Energy Gun 8 | 1 2 1 4 Energy Cannon 3 | . . 3 . Ballistic Gun 11 | 1 3 . 7 Ballistic Cannon . | . . . . Launcher . | . . . . Special Weapon 3 | . 2 1 . Impact Weapon . | . . . . Slashing Weapon . | . . . . Piercing Weapon . | . . . . Special Melee Weapon . | . . . . Unidentified Prototypes 1 | . . 1 . Parts Lost 17 | . . 1 16 Power 4 | . . . 4 Propulsion 6 | . . . 6 Utility 2 | . . . 2 Weapon 5 | . . 1 4 Highest Loss Streak 6 | . . 1 6 To Critical Strikes . | . . . . Average Slot Usage (%) 87 | . 100 91 65 Engine 12 | . 14 13 6 Wheel 24 | . 28 27 9 Device 13 | . 14 13 12 Storage 12 | . 14 13 8 Processor 1 | . . . 8 Energy Gun 5 | . 7 6 4 Energy Cannon 9 | . . 12 1 Ballistic Gun 2 | . 19 1 5 Special Weapon 1 | . 1 1 . Peak Build Rating 29 | 9 10 22 29 Average Rating 12 | 6 9 12 14 On Entrance 10 | . 9 10 22 Naked Turns . | . . . . Heaviest Build 22 | 14 16 22 20 Greatest Support 32 | 32 20 20 21 Greatest Overweight (x) 4 | . . 1 4 Average Overweight (x) . | . . . . Largest Inventory Capacity 8 | 8 8 8 8 Average Capacity 7 | 7 8 8 8 Most Carried 8 | 8 8 8 8 Average Carried 7 | 4 7 7 7 Final Capacity 8 | 8 8 8 8 Final Carried 8 | 7 8 8 7 Class Distribution -------------------- 60% | Scavenger-Mutant 39% | Mutant Dominant Class ---------------- Scavenger-Mutant | -10/Materials Scavenger-Mutant | -10/Subcaves Scavenger-Mutant | -8/Materials Resources | -11 -10 -10 -8 ----------- Run | Yrd Mat Sub Mat Matter Collected 1044 | 339 170 144 391 Remotely 112 | . . . 112 Salvage Created 1072 | 123 251 161 537 Parts 67 | 14 12 6 35 Haulers Intercepted . | . . . . Recyclers Shooed 2 | 1 1 . . Parts Field Recycled . | . . . . Retrieved Matter . | . . . . Parts Self-Destructed 11 | . . 11 . Prevented . | . . . . Kills | -11 -10 -10 -8 ------- Run | Yrd Mat Sub Mat Combat Hostiles Destroyed 20 | . 5 2 13 Guns 17 | . 5 1 11 Cannons 3 | . . 1 2 Classes Destroyed 10 | 2 3 2 3 Worker 2 | . . . 2 Builder 4 | . 2 . 2 Tunneler 6 | 4 . . 2 Recycler 3 | 1 1 . 1 Watcher 1 | . . . 1 Swarmer 11 | . 3 . 8 Grunt 5 | . 2 . 3 Sentry 2 | . . . 2 Cobbler 2 | . . 2 . Subdweller 2 | . . 2 . Best Kill Streak 7 | 5 4 1 7 Combat Bots Only 6 | . 3 1 6 Max Kills in Single Turn 2 | 1 2 1 2 Gunslinging 1 | . 1 . . Exploded . | . . . . Melee . | . . . . Uniques/NPCs Destroyed . | . . . . Combat | -11 -10 -10 -8 -------- Run | Yrd Mat Sub Mat Hostile Shots Fired 199 | . 17 11 171 Missed 47 | . 1 3 43 Damage Taken 2027 | . 170 166 1691 Core 626 | . 30 34 562 Absorbed by Shields . | . . . . Core Remaining (%) 87 | 100 . 74 . Volleys Fired 192 | 13 23 59 97 Largest 2 | 2 2 2 2 Hottest 145 | 60 100 145 85 Shots Fired 237 | 26 42 62 107 Gun 168 | 26 38 5 99 Cannon 49 | . . 41 8 Launcher . | . . . . Special 20 | . 4 16 . Kinetic 93 | 13 30 . 50 Thermal 140 | 13 12 62 53 Explosive . | . . . . Electromagnetic 4 | . . . 4 Robot Hit Streak 19 | 3 8 18 19 Robot Miss Streak 5 | 4 2 4 5 Penetration Max . | . . . . Secondary Targets 2 | . 2 . . Max Gunslinging Chain 1 | . 1 . . Shots Hit Robots 117 | 10 25 21 61 Core Hits 56 | 6 12 6 32 Critical Kills 1 | . . 1 . Critical Parts Destroyed . | . . . . Critical Strikes 1 | . . 1 . Meltdown 1 | . . 1 . Melee Attacks . | . . . . Impact . | . . . . Slashing . | . . . . Piercing . | . . . . Sneak Attacks . | . . . . Combat Hostiles . | . . . . Follow-up Attacks . | . . . . Damage Inflicted 2122 | 150 317 496 1159 Guns 1334 | 150 317 80 787 Cannons 642 | . . 416 226 Explosions 139 | . . . 139 Melee . | . . . . Ramming 7 | . . . 7 Kinetic 642 | 82 274 . 286 Thermal 1269 | 68 43 496 662 Explosive 139 | . . . 139 Electromagnetic 65 | . . . 65 Impact . | . . . . Slashing . | . . . . Piercing . | . . . . Highest Corruption . | . . . . Average Corruption . | . . . . Corruption Purged . | . . . . Corruption Blocked . | . . . . Overload Shots . | . . . . Overflow Damage 67 | . . . 67 Projectiles 5 | . . . 5 Explosions 62 | . . . 62 Melee . | . . . . Knockbacks . | . . . . Impact . | . . . . Kinetic . | . . . . Secondary . | . . . . Self-Inflicted Damage 131 | . . . 131 Shots 2 | . . . 2 Rammed 3 | . . . 3 Targets Rammed 3 | . . . 3 Kicked . | . . . . Crushed . | . . . . Highest Temperature 439 | . 66 72 439 Average Temperature 106 | . 33 39 131 Received Heat Transfer 363 | . 66 . 297 Effects 4 | . . . 4 Shutdowns 1 | . . . 1 Matter Decay 2 | . . . 2 Short Circuit 1 | . . . 1 Siege Activations . | . . . . Robots Corrupted . | . . . . Combat Hostiles . | . . . . Parts Fried . | . . . . Impact Corruptions . | . . . . Robots Melted 1 | . . 1 . Combat Hostiles . | . . . . Parts Melted 2 | . . 2 . Heat Transferred 2026 | 150 100 740 1036 Parts Sabotaged . | . . . . Parts Stolen . | . . . . Parts Stripped . | . . . . Power Chain Reactions . | . . . . Alert | -11 -10 -10 -8 ------- Run | Yrd Mat Sub Mat Peak Influence 226 | 25 184 . 226 Initial 16 | . 16 . . Average 83 | 15 72 . 106 Maximum Alert Level 1 | . . . 1 Low Security (%) 93 | 100 100 . 88 Level 1 6 | . . . 11 Level 2 . | . . . . Level 3 . | . . . . Level 4 . | . . . . Level 5 . | . . . . High Security . | . . . . Max Security . | . . . . Squads Dispatched 1 | . . . 1 Investigation . | . . . . Extermination . | . . . . Reinforcement 1 | . . . 1 Assault . | . . . . Garrison . | . . . . Intercept . | . . . . Searches Triggered . | . . . . Construction Impeded . | . . . . Haulers Reinforced . | . . . . Active Scanning Responses . | . . . . Cargo Convoy Interrupts . | . . . . Stealth | -11 -10 -10 -8 --------- Run | Yrd Mat Sub Mat Distress Signals 6 | . 2 . 4 Communications Jammed . | . . . . Distress Signals . | . . . . Times Spotted 37 | . 10 2 25 Peak Tracking Total 8 | . 5 1 8 Tactical Retreats 3 | . . . 3 Traps | -11 -10 -10 -8 ------- Run | Yrd Mat Sub Mat Traps Triggered . | . . . . Indirectly . | . . . . Trap Hack Attempts . | . . . . Triggered . | . . . . Disarmed . | . . . . Reprogrammed . | . . . . Reused . | . . . . Traps Extracted . | . . . . Installed . | . . . . Triggered . | . . . . Machines | -11 -10 -10 -8 ---------- Run | Yrd Mat Sub Mat Machines Disabled 3 | . . 1 2 Max in Single Turn 2 | . . 1 2 Machines Repaired . | . . . . Machines Dismantled . | . . . . Machines Sabotaged . | . . . . Overloaded Fab Kills . | . . . . Hacking | -11 -10 -10 -8 --------- Run | Yrd Mat Sub Mat Machines Accessed 4 | . 1 2 1 Terminals 2 | . 1 . 1 Fabricators . | . . . . Repair Stations . | . . . . Recycling Units . | . . . . Scanalyzers . | . . . . Garrison Access . | . . . . Total Hacks 15 | . 2 12 1 Successful 14 | . 1 12 1 Failed 1 | . 1 . . Catastrophic . | . . . . Database Lockouts . | . . . . Manual 3 | . 2 . 1 Terminals 3 | . 2 . 1 Fabricators . | . . . . Repair Stations . | . . . . Recycling Units . | . . . . Scanalyzers . | . . . . Garrison Access . | . . . . Terminal Hacks 13 | . 1 12 . Record 12 | . . 12 . Terminal Index 1 | . 1 . . Fabricator Hacks . | . . . . Repair Station Hacks . | . . . . Recycling Unit Hacks . | . . . . Scanalyzer . | . . . . Garrison Access Hacks . | . . . . Unauthorized Hacks 1 | . . . 1 Terminals 1 | . . . 1 Track 1 | . . . 1 Fabricators . | . . . . Repair Stations . | . . . . Recycling Units . | . . . . Scanalyzers . | . . . . Garrison Access . | . . . . Data Cores Recovered . | . . . . Used . | . . . . Hacking Detections 1 | . 1 . . Full Trace Events . | . . . . Feedback Events . | . . . . Feedback Blocked . | . . . . Robot Schematics Acquired . | . . . . Robots Built . | . . . . Authchips . | . . . . Time . | . . . . Total Robot Build Rating . | . . . . Part Schematics Acquired . | . . . . Parts Built . | . . . . Authchips . | . . . . Time . | . . . . Total Part Build Rating . | . . . . Parts Repaired . | . . . . Time . | . . . . Parts Recycled . | . . . . Recycled Matter . | . . . . Retrieved Matter . | . . . . Retrieved Components . | . . . . Parts Scanalyzed . | . . . . Part Schematics Acquired . | . . . . Parts Damaged . | . . . . Bothacking | -11 -10 -10 -8 ------------ Run | Yrd Mat Sub Mat Used RIF Installer . | . . . . Robots Hacked . | . . . . Non-combat . | . . . . Combat . | . . . . Robot Hacks Applied . | . . . . Relay Couplers Released . | . . . . Fabnet Peak Effective % . | . . . . Robots Rewired . | . . . . Allies Hacked . | . . . . Hacks Repelled . | . . . . Allies | -11 -10 -10 -8 -------- Run | Yrd Mat Sub Mat Total Allies . | . . . . Largest Group . | . . . . Highest-Rated Group . | . . . . Highest-Rated Ally . | . . . . Total Orders . | . . . . Ally Attacks . | . . . . Total Damage . | . . . . Kills . | . . . . Allies Corrupted . | . . . . Allies Melted . | . . . . Intel | -11 -10 -10 -8 ------- Run | Yrd Mat Sub Mat Robot Analysis Total . | . . . . Derelict Logs Recovered 1 | . . 1 . Drone Launches . | . . . . Drone Recoveries . | . . . . Exploration | -11 -10 -10 -8 ------------- Run | Yrd Mat Sub Mat Turns Passed 4895 | 188 255 3774 678 Spaces Moved 1214 | 139 113 680 282 Core 5 | 1 . . 4 Treads . | . . . . Legs . | . . . . Wheels 1111 | 138 113 680 180 Hover 62 | . . . 62 Flight 36 | . . . 36 Fastest Speed 34 | 50 80 80 34 Average Speed 83 | 89 80 83 79 Slowest Speed 360 | 100 80 95 360 Overloaded Moves . | . . . . Propulsion Burnouts . | . . . . Robots Hopped . | . . . . Cave-ins Triggered . | . . . . Exploration Rate (%) 23 | 6 16 51 22 Regions Visited 3 Branch Regions 1 Pre-discovered Areas 2 | . . 2 . Known Exits Taken . | . . . . Unknown Exits Taken 3 | 1 1 1 . Scrap Searched 3 | . . 3 . Spaces Dug 14 | . 4 10 . Terrain Destroyed 28 | . 4 16 8 Melee . | . . . . Projectile 23 | . 4 16 3 AOE 5 | . . . 5 Terrain Rammed . | . . . . Walls Destroyed . | . . . . Machines Disabled . | . . . . Actions | -11 -10 -10 -8 --------- Run | Yrd Mat Sub Mat Total 4809 | 172 225 3784 628 Wait 3296 | . 74 3016 206 Move 1211 | 138 112 679 282 Hop . | . . . . Pick Up 21 | 8 4 2 7 Fast Attach 26 | 7 1 2 16 Attach 10 | 1 . 2 7 Detach 2 | . . 1 1 Swap 35 | 2 7 19 7 Drop 13 | 3 4 4 2 Fire 192 | 13 23 59 97 Melee . | . . . . Ram 3 | . . . 3 Kick . | . . . . Crush . | . . . . Escape Stasis . | . . . . Rewire . | . . . . Trap . | . . . . Miscellaneous . | . . . . Route ------- -11/Scrapyard -10/Materials -10/Subcaves -8/Materials History --------- Turn | Location | Event 24 | -11/Scrapyard | Discovered new exit (range 16) 189 | -11/Scrapyard | Entered Materials 300 | -10/Materials | Build established: Scavenger-Mutant 411 | -10/Materials | Discovered new exit (range 10) 444 | -10/Materials | Entered Subcaves 446 | -10/Subcaves | A swath of the cavern ceiling suddenly collapsed 487 | -10/Subcaves | Learned location of Zion (-7) 487 | -10/Subcaves | Met a Zionite searching for "candidates" 489 | -10/Subcaves | Learned Materials trap positions 2063 | -10/Subcaves | Shifting Twisted Machinery released Mak. Light Armor Plating 2131 | -10/Subcaves | Visited Clippyterm 2133 | -10/Subcaves | Learned Factory emergency access door positions 2133 | -10/Subcaves | Learned location of Extension (-5) 2772 | -10/Subcaves | Build established: Mutant 3465 | -10/Subcaves | Visited 4L-MR0's lab 3485 | -10/Subcaves | Found Prototype Energy Cannon 3485 | -10/Subcaves | Identified Powered Cannon 3486 | -10/Subcaves | Attached Powered Cannon, gained temporary slot: Power 4210 | -10/Subcaves | Discovered new exit (range 10) 4218 | -10/Subcaves | Entered Materials 4218 | -8/Materials | Evolved 4 slots: Power x1, Propulsion x1, Utility x2 4219 | -8/Materials | Loaded intel: 28 trap records 4368 | -8/Materials | Lost 6 parts (2p2n2w) 4571 | -8/Materials | Lost 5 parts (1p3n1u) 4658 | -8/Materials | Core integrity fell below 50% 4858 | -8/Materials | Build established: Scavenger-Mutant 4879 | -8/Materials | Core integrity fell below 20% 4896 | -8/Materials | Destroyed by C-17 Slicer with Blade Saw Last Messages --------------- 04879_ K-01 Serf cleans the Garrison Access. 04879_ Acquired Hvy. Assault Rifle. 04880_ U-05 Engineer lays Concrete. 04881_ Hvy. Assault Rifle severed. 04882_ Acquired Hvy. Assault Rifle. 04883_ U-05 Engineer lays Concrete. 04884_ Hvy. Assault Rifle severed. 04886_ U-05 Engineer lays Concrete. 04887_ Hvy. EM Pulse Gun severed. 04887_ U-05 Engineer lays Concrete. 04890_ Acquired Hvy. EM Pulse Gun. 04890_ U-05 Engineer lays Concrete. 04890_ Hvy. EM Pulse Gun severed. 04891_ U-05 Engineer lays Concrete. 04891_ Slammed into C-17 Slicer. 04892_ U-05 Engineer lays Concrete. 04892_ Slammed into C-17 Slicer. 04894_ U-05 Engineer lays Concrete. 04894_ Acquired Hvy. Assault Rifle. 04895_ U-05 Engineer lays Concrete. Map ----- +----------------------------------------------------+ | #??????????????# ????????? #??????????????? | | ??????????????## ???????? #??????????????? | | ???????????????# ???????# #??????????????? | | ???????????##### ???????# #??????????????? | | ?????? ???????# #??????????????? | | ??? ???????# #??????????????? | | ????? ???????# #??????????????? | | ########+??????# #??????# #??????????????? | | ???????????????# #??????# #??????????????? | | ???????????????# ######## #??????????????? | | ???????????????# [[ #??????????????? | | ???????????????# t [[ #??????????????? | | ???????????????# k [ u ##?????????????? | | #?????????????# #?????????????? | | #??#??????????# = ##?????????????? | | ???????????##?# k % ##?????????????? | | ???????????? # #?????????????? | | ?????????????? + #?????????????? | | ???????????????# = ##?????????????? | | ???????????????# u #?????????????? | | ??????????????## [[] #?????????????? | | ############### k ]]k ###???? ] ????? | | k ] k # ????? | | k ; ??????? | | % cc #???????????? | | ####+########## [[c@ #???????????? | | # #??????###+######## #???????????? | | #[[! T ##??????? ?????# " +???????????? | | #[! #??????""""" ???# "G" #???????????? | | #[! ##?????""""""""" ?# " " #???????????? | | # #???????""" """ ?# #???????????? | | #! #?????? # ??????????? | | ######+#?????? ? # ?????????? | | ?????????????#########???# ????????? | | ?????????????????????????? #### ????????? | | ?????????????????????????? ??? ?????????? | | ?????????????????????????? ???? ??????????? | | ??????????????????????????H ???? ????????????? | | ??????????????????????????? ????? ????????????? | | ??????????????????????????????????!???????????? | | ??????????????????????????????????????????????? | | ??????????????????????????????????????????????? | | ??????????????????????????????????????????????? | | ??????????????????????????????????????????????? | | ??????????????????????????????????????????????? | | ??????????????????????????????????????????????? | | ??????????????????????????????????????????????? | | ??????????????????????????????????????????????? | | ??????????????????????????????????????????????? | | ??????????????????????????????????????????????? | +----------------------------------------------------+ Best States ------------- Heat Dissipation 45 Energy Generation 15 Energy Capacity 275 Matter Stores 300 Matter Capacity 300 Sight Range 18 Terrain Scan Range 16 Terrain Scan Density 10 Additional Mass Support 9 Armor Coverage 100 Evasion (%) 63 Item Schematics ----------------- None Robot Schematics ------------------ None Fabricated ------------ Nothing Alien Tech Used ----------------- None Achievements -------------- None Challenges ------------ None Game ------ Seed BombardmentCouplerSpoofer Manual? 0 Play Time 00:34:59 Cumulative 229.3 hours Start 2024.12.19 @ 01:23:31 End 2024.12.19 @ 02:12:26 Sessions 1 Manual Loads 0 Difficulty Rogue Special Mode None Game No. 354 Rogue 354 Adventurer 0 Explorer 0 Win Type - Total 0 Types 0/0/0/0/0/0/0/0/0 Lore% 39 Gallery% 56 Achievement% 41 Wizard Run 0 Options --------- Layout 0 ASCII 0 Keyboard 0 Movement Mouse Keybinds 0 Fullscreen 1 Font 18/SmallcapsGlow Map View 76x50 Zoom Use 0% Tactical HUD 1 Map Filters NONE Filters NONE Steam 1 RUN: 624a480c-d1b9-46a3-942c-82446640d82d